[Event "Early Titled Tuesday Blitz | February 8 2022"]
[White "Bortnyk, Olexandr"]
[Black "Yeletsky, Ivan"]
[WhiteFideId "14120828"]
[BlackFideId "24180327"]
[WhiteElo "2723"]
[BlackElo "2348"]
[Result "1/2-1/2"]
[Round "11"]
[TimeControl "180+1"]
[Date "2022.02.08"]
[WhiteClock "0:00:03"]
[BlackClock "0:00:06"]

1. e4 {[%clk 0:03:00]}  c5 {[%clk 0:02:54]} 2. c3 {[%clk 0:03:00]}  Nf6 {[%clk 0:02:53]} 3. e5 {[%clk 0:03:00]}  Nd5 {[%clk 0:02:53]} 4. d4 {[%clk 0:03:01]}  cxd4 {[%clk 0:02:53]} 5. Nf3 {[%clk 0:03:02]}  d6 {[%clk 0:02:52]} 6. cxd4 {[%clk 0:03:03]}  dxe5 {[%clk 0:02:46]} 7. Nxe5 {[%clk 0:02:39]}  Nc6 {[%clk 0:02:45]} 8. Bc4 {[%clk 0:02:35]}  e6 {[%clk 0:02:44]} 9. O-O {[%clk 0:02:30]}  Be7 {[%clk 0:02:44]} 10. Nf3 {[%clk 0:02:27]}  O-O {[%clk 0:02:43]} 11. Qe2 {[%clk 0:02:24]}  a6 {[%clk 0:02:10]} 12. Nc3 {[%clk 0:02:22]}  b5 {[%clk 0:02:11]} 13. Bd3 {[%clk 0:02:20]}  Bb7 {[%clk 0:02:06]} 14. a3 {[%clk 0:01:56]}  Rc8 {[%clk 0:02:02]} 15. Ne4 {[%clk 0:01:53]}  Nf6 {[%clk 0:02:00]} 16. Be3 {[%clk 0:01:16]}  Na5 {[%clk 0:01:45]} 17. Nc3 {[%clk 0:00:46]}  Nc4 {[%clk 0:01:45]} 18. Rad1 {[%clk 0:00:46]}  Bxf3 {[%clk 0:01:42]} 19. gxf3 {[%clk 0:00:44]}  Nd5 {[%clk 0:01:36]} 20. Ne4 {[%clk 0:00:32]}  f5 {[%clk 0:01:24]} 21. Nc5 {[%clk 0:00:27]}  Ndxe3 {[%clk 0:01:24]} 22. Nxe6 {[%clk 0:00:24]}  Qd6 {[%clk 0:01:12]} 23. Bxc4 {[%clk 0:00:16]}  Nxc4 {[%clk 0:01:12]} 24. Nxf8 {[%clk 0:00:16]}  Rxf8 {[%clk 0:01:12]} 25. b3 {[%clk 0:00:15]}  Nb6 {[%clk 0:00:58]} 26. d5 {[%clk 0:00:16]}  Nd7 {[%clk 0:00:46]} 27. Rfe1 {[%clk 0:00:14]}  Re8 {[%clk 0:00:24]} 28. Qe6+ {[%clk 0:00:13]}  Kf8 {[%clk 0:00:24]} 29. Qxf5+ {[%clk 0:00:11]}  Bf6 {[%clk 0:00:18]} 30. Qxh7 {[%clk 0:00:11]}  Rxe1+ {[%clk 0:00:16]} 31. Rxe1 {[%clk 0:00:12]}  Ne5 {[%clk 0:00:17]} 32. Qe4 {[%clk 0:00:09]}  g5 {[%clk 0:00:16]} 33. a4 {[%clk 0:00:05]}  bxa4 {[%clk 0:00:15]} 34. bxa4 {[%clk 0:00:06]}  Kg7 {[%clk 0:00:16]} 35. Rd1 {[%clk 0:00:02]}  Ng6 {[%clk 0:00:16]} 36. Qe6 {[%clk 0:00:02]}  Qc5 {[%clk 0:00:10]} 37. d6 {[%clk 0:00:01]}  Nf4 {[%clk 0:00:10]} 38. Qd7+ {[%clk 0:00:02]}  Kh6 {[%clk 0:00:09]} 39. Qg4 {[%clk 0:00:01]}  Qc2 {[%clk 0:00:08]} 40. Rf1 {[%clk 0:00:02]}  Qd3 {[%clk 0:00:08]} 41. d7 {[%clk 0:00:02]}  Ne2+ {[%clk 0:00:07]} 42. Kg2 {[%clk 0:00:03]}  Nf4+ {[%clk 0:00:07]} 43. Kg1 {[%clk 0:00:03]}  Ne2+ {[%clk 0:00:05]} 44. Kg2 {[%clk 0:00:02]}  Nf4+ {[%clk 0:00:06]} 45. Kg1 {[%clk 0:00:03]} 1/2-1/2


[Site "https://www.chess.com"]

[Event "Early Titled Tuesday Blitz | February 8 2022"]
[White "Brunner, Nicolas"]
[Black "Piesik, Piotr"]
[WhiteFideId "620246"]
[BlackFideId "1136194"]
[WhiteElo "2372"]
[BlackElo "2232"]
[Result "1-0"]
[Round "11"]
[TimeControl "180+1"]
[Date "2022.02.08"]
[WhiteClock "0:00:05"]
[BlackClock "0:01:08"]

1. d4 {[%clk 0:03:00]}  c5 {[%clk 0:02:54]} 2. d5 {[%clk 0:03:00]}  e5 {[%clk 0:02:53]} 3. e4 {[%clk 0:02:59]}  d6 {[%clk 0:02:53]} 4. Nc3 {[%clk 0:02:59]}  Be7 {[%clk 0:02:53]} 5. f4 {[%clk 0:02:58]}  exf4 {[%clk 0:02:53]} 6. Bxf4 {[%clk 0:02:56]}  Bg5 {[%clk 0:02:53]} 7. Bb5+ {[%clk 0:02:54]}  Kf8 {[%clk 0:02:51]} 8. Qd2 {[%clk 0:02:54]}  Bxf4 {[%clk 0:02:51]} 9. Qxf4 {[%clk 0:02:54]}  Qf6 {[%clk 0:02:52]} 10. Qg3 {[%clk 0:02:48]}  a6 {[%clk 0:02:49]} 11. Be2 {[%clk 0:02:45]}  Nd7 {[%clk 0:02:47]} 12. Nf3 {[%clk 0:02:44]}  Ne7 {[%clk 0:02:47]} 13. O-O {[%clk 0:02:43]}  Ne5 {[%clk 0:02:39]} 14. Nxe5 {[%clk 0:02:41]}  Qxe5 {[%clk 0:02:39]} 15. Qxe5 {[%clk 0:02:40]}  dxe5 {[%clk 0:02:40]} 16. a4 {[%clk 0:02:37]}  Ng6 {[%clk 0:02:32]} 17. g3 {[%clk 0:02:30]}  Bh3 {[%clk 0:02:30]} 18. Rf2 {[%clk 0:02:26]}  f6 {[%clk 0:02:27]} 19. a5 {[%clk 0:02:26]}  Bd7 {[%clk 0:02:22]} 20. Rb1 {[%clk 0:02:03]}  Rc8 {[%clk 0:02:19]} 21. Nd1 {[%clk 0:02:03]}  Ke7 {[%clk 0:02:07]} 22. Ne3 {[%clk 0:02:03]}  Rhd8 {[%clk 0:01:57]} 23. h4 {[%clk 0:01:56]}  Nh8 {[%clk 0:01:56]} 24. Bg4 {[%clk 0:01:53]}  Bxg4 {[%clk 0:01:53]} 25. Nxg4 {[%clk 0:01:53]}  Nf7 {[%clk 0:01:54]} 26. Ne3 {[%clk 0:01:53]}  Nd6 {[%clk 0:01:54]} 27. Nf5+ {[%clk 0:01:51]}  Nxf5 {[%clk 0:01:54]} 28. Rxf5 {[%clk 0:01:51]}  c4 {[%clk 0:01:53]} 29. Ra1 {[%clk 0:01:15]}  Rc5 {[%clk 0:01:52]} 30. Ra4 {[%clk 0:01:13]}  Rd7 {[%clk 0:01:50]} 31. c3 {[%clk 0:01:10]}  Rdc7 {[%clk 0:01:42]} 32. Rf2 {[%clk 0:01:03]}  Rb5 {[%clk 0:01:42]} 33. Rd2 {[%clk 0:00:40]}  Rcc5 {[%clk 0:01:39]} 34. Rb4 {[%clk 0:00:29]}  Rxb4 {[%clk 0:01:34]} 35. cxb4 {[%clk 0:00:29]}  Rb5 {[%clk 0:01:35]} 36. Kf2 {[%clk 0:00:10]}  Rxb4 {[%clk 0:01:34]} 37. Kf3 {[%clk 0:00:11]}  h5 {[%clk 0:01:33]} 38. Rc2 {[%clk 0:00:08]}  Kd6 {[%clk 0:01:31]} 39. Rc3 {[%clk 0:00:07]}  Kd7 {[%clk 0:01:22]} 40. g4 {[%clk 0:00:07]}  hxg4+ {[%clk 0:01:20]} 41. Kxg4 {[%clk 0:00:07]}  Rxb2 {[%clk 0:01:20]} 42. Rxc4 {[%clk 0:00:07]}  Rb5 {[%clk 0:01:18]} 43. Kh5 {[%clk 0:00:07]}  Rxa5 {[%clk 0:01:12]} 44. Kg6 {[%clk 0:00:07]}  Ra1 {[%clk 0:01:10]} 45. Kxg7 {[%clk 0:00:06]}  Rh1 {[%clk 0:01:10]} 46. Kxf6 {[%clk 0:00:06]}  Rxh4 {[%clk 0:01:10]} 47. Kxe5 {[%clk 0:00:06]}  b5 {[%clk 0:01:10]} 48. Rc6 {[%clk 0:00:06]}  b4 {[%clk 0:01:08]} 49. Rxa6 {[%clk 0:00:06]}  b3 {[%clk 0:01:09]} 50. Rb6 {[%clk 0:00:06]}  Rh3 {[%clk 0:01:08]} 51. Kd4 {[%clk 0:00:06]}  Kc7 {[%clk 0:01:08]} 52. Rb4 {[%clk 0:00:05]} 1-0


[Site "https://www.chess.com"]

[Event "Early Titled Tuesday Blitz | February 8 2022"]
[White "Caruana, Fabiano"]
[Black "Dobrov, Vladimir"]
[WhiteFideId "2020009"]
[BlackFideId "4136594"]
[WhiteElo "2744"]
[BlackElo "2614"]
[Result "0-1"]
[Round "11"]
[TimeControl "180+1"]
[Date "2022.02.08"]
[WhiteClock "0:00:03"]
[BlackClock "0:00:15"]

1. d4 {[%clk 0:03:00]}  Nf6 {[%clk 0:02:59]} 2. Nc3 {[%clk 0:03:00]}  d5 {[%clk 0:02:59]} 3. Bf4 {[%clk 0:03:01]}  c5 {[%clk 0:02:59]} 4. e3 {[%clk 0:03:01]}  cxd4 {[%clk 0:02:59]} 5. exd4 {[%clk 0:03:01]}  a6 {[%clk 0:03:00]} 6. Bd3 {[%clk 0:03:00]}  Nc6 {[%clk 0:02:59]} 7. Nce2 {[%clk 0:02:59]}  Nb4 {[%clk 0:02:57]} 8. Nf3 {[%clk 0:02:59]}  Nxd3+ {[%clk 0:02:57]} 9. cxd3 {[%clk 0:02:59]}  Qa5+ {[%clk 0:02:47]} 10. Bd2 {[%clk 0:02:52]}  Qb5 {[%clk 0:02:46]} 11. O-O {[%clk 0:02:48]}  Bg4 {[%clk 0:02:43]} 12. Ne5 {[%clk 0:02:47]}  Bxe2 {[%clk 0:02:42]} 13. Qxe2 {[%clk 0:02:48]}  e6 {[%clk 0:02:42]} 14. a4 {[%clk 0:02:44]}  Qb6 {[%clk 0:02:42]} 15. Be3 {[%clk 0:02:27]}  Bb4 {[%clk 0:02:40]} 16. Rfc1 {[%clk 0:02:23]}  O-O {[%clk 0:02:38]} 17. h4 {[%clk 0:02:21]}  Rfc8 {[%clk 0:02:31]} 18. h5 {[%clk 0:02:20]}  h6 {[%clk 0:02:30]} 19. g4 {[%clk 0:02:15]}  Bd6 {[%clk 0:02:24]} 20. Kg2 {[%clk 0:01:57]}  a5 {[%clk 0:02:14]} 21. Qf3 {[%clk 0:01:52]}  Rxc1 {[%clk 0:01:55]} 22. Rxc1 {[%clk 0:01:51]}  Qxb2 {[%clk 0:01:56]} 23. Qf4 {[%clk 0:01:29]}  Qe2 {[%clk 0:01:36]} 24. Kh3 {[%clk 0:01:04]}  Bxe5 {[%clk 0:01:15]} 25. dxe5 {[%clk 0:01:03]}  Nh7 {[%clk 0:01:16]} 26. Kg2 {[%clk 0:00:40]}  Qxd3 {[%clk 0:01:13]} 27. Rc7 {[%clk 0:00:38]}  Ng5 {[%clk 0:01:13]} 28. Qd4 {[%clk 0:00:30]}  Qe2 {[%clk 0:00:59]} 29. Bxg5 {[%clk 0:00:22]}  hxg5 {[%clk 0:01:00]} 30. Kg3 {[%clk 0:00:19]}  Qe1 {[%clk 0:00:45]} 31. Qe3 {[%clk 0:00:05]}  Qxe3+ {[%clk 0:00:28]} 32. fxe3 {[%clk 0:00:06]}  Rb8 {[%clk 0:00:28]} 33. Kf3 {[%clk 0:00:06]}  b6 {[%clk 0:00:23]} 34. Ra7 {[%clk 0:00:04]}  Rc8 {[%clk 0:00:23]} 35. Rb7 {[%clk 0:00:03]}  Rc4 {[%clk 0:00:23]} 36. Rxb6 {[%clk 0:00:04]}  Rxa4 {[%clk 0:00:23]} 37. Rb8+ {[%clk 0:00:04]}  Kh7 {[%clk 0:00:23]} 38. Rb7 {[%clk 0:00:04]}  Ra1 {[%clk 0:00:18]} 39. Kf2 {[%clk 0:00:04]}  a4 {[%clk 0:00:18]} 40. Rxf7 {[%clk 0:00:04]}  a3 {[%clk 0:00:18]} 41. Ra7 {[%clk 0:00:04]}  a2 {[%clk 0:00:14]} 42. Kg2 {[%clk 0:00:05]}  Kg8 {[%clk 0:00:14]} 43. Ra8+ {[%clk 0:00:01]}  Kf7 {[%clk 0:00:15]} 44. Ra7+ {[%clk 0:00:02]}  Ke8 {[%clk 0:00:15]} 45. Ra8+ {[%clk 0:00:02]}  Kd7 {[%clk 0:00:15]} 46. Ra6 {[%clk 0:00:03]}  Kc7 {[%clk 0:00:16]} 47. Ra3 {[%clk 0:00:03]}  Kb6 {[%clk 0:00:16]} 48. Ra8 {[%clk 0:00:03]}  Kc5 {[%clk 0:00:16]} 49. Ra7 {[%clk 0:00:03]}  Kc4 {[%clk 0:00:16]} 50. Rxg7 {[%clk 0:00:03]}  Re1 {[%clk 0:00:15]} 51. Rc7+ {[%clk 0:00:03]}  Kd3 {[%clk 0:00:15]} 0-1


[Site "https://www.chess.com"]

[Event "Early Titled Tuesday Blitz | February 8 2022"]
[White "Dahanayake, Isara Banidu"]
[Black "Bugayev, Vladimir"]
[WhiteFideId "9932631"]
[BlackFideId "30901480"]
[WhiteElo "1394"]
[BlackElo "2364"]
[Result "0-1"]
[Round "11"]
[TimeControl "180+1"]
[Date "2022.02.08"]
[WhiteClock "0:00:03"]
[BlackClock "0:00:10"]

1. e4 {[%clk 0:03:00]}  c6 {[%clk 0:02:59]} 2. d4 {[%clk 0:03:00]}  d5 {[%clk 0:03:00]} 3. e5 {[%clk 0:03:00]}  Bf5 {[%clk 0:02:59]} 4. Nd2 {[%clk 0:03:01]}  e6 {[%clk 0:02:59]} 5. Nb3 {[%clk 0:03:01]}  Nd7 {[%clk 0:02:54]} 6. Nf3 {[%clk 0:02:59]}  Ne7 {[%clk 0:02:53]} 7. Be2 {[%clk 0:02:55]}  Nc8 {[%clk 0:02:51]} 8. O-O {[%clk 0:02:55]}  Be7 {[%clk 0:02:51]} 9. a4 {[%clk 0:02:53]}  a6 {[%clk 0:02:51]} 10. a5 {[%clk 0:02:53]}  Na7 {[%clk 0:02:51]} 11. c4 {[%clk 0:02:45]}  dxc4 {[%clk 0:02:49]} 12. Bxc4 {[%clk 0:02:45]}  Nb5 {[%clk 0:02:49]} 13. Bd3 {[%clk 0:02:14]}  Bxd3 {[%clk 0:02:34]} 14. Qxd3 {[%clk 0:02:15]}  O-O {[%clk 0:02:33]} 15. Be3 {[%clk 0:02:14]}  h6 {[%clk 0:02:28]} 16. Rfd1 {[%clk 0:02:08]}  Nc7 {[%clk 0:02:24]} 17. Nfd2 {[%clk 0:01:59]}  Nxe5 {[%clk 0:02:17]} 18. Qe4 {[%clk 0:01:55]}  Ng6 {[%clk 0:02:09]} 19. Nc4 {[%clk 0:01:52]}  Nd5 {[%clk 0:02:09]} 20. Nc5 {[%clk 0:01:49]}  Bxc5 {[%clk 0:01:58]} 21. dxc5 {[%clk 0:01:49]}  Qh4 {[%clk 0:01:57]} 22. Qc2 {[%clk 0:01:11]}  Rad8 {[%clk 0:01:47]} 23. Nd6 {[%clk 0:01:11]}  Rd7 {[%clk 0:01:48]} 24. Rd4 {[%clk 0:01:10]}  Nxe3 {[%clk 0:01:39]} 25. fxe3 {[%clk 0:01:10]}  Qg5 {[%clk 0:01:29]} 26. Re1 {[%clk 0:01:01]}  Ne5 {[%clk 0:01:21]} 27. Qf2 {[%clk 0:00:46]}  f5 {[%clk 0:01:11]} 28. b4 {[%clk 0:00:41]}  Ng4 {[%clk 0:01:05]} 29. Qg3 {[%clk 0:00:40]}  Nf6 {[%clk 0:00:54]} 30. Qf2 {[%clk 0:00:38]}  e5 {[%clk 0:00:44]} 31. Rdd1 {[%clk 0:00:29]}  e4 {[%clk 0:00:44]} 32. Rf1 {[%clk 0:00:22]}  Nd5 {[%clk 0:00:43]} 33. Nxf5 {[%clk 0:00:21]}  Rxf5 {[%clk 0:00:41]} 34. Qxf5 {[%clk 0:00:21]}  Qxf5 {[%clk 0:00:39]} 35. Rxf5 {[%clk 0:00:21]}  Re7 {[%clk 0:00:39]} 36. Rdxd5 {[%clk 0:00:20]}  cxd5 {[%clk 0:00:39]} 37. Rxd5 {[%clk 0:00:21]}  Kf7 {[%clk 0:00:35]} 38. Rd6 {[%clk 0:00:20]}  Ke8 {[%clk 0:00:33]} 39. Kf2 {[%clk 0:00:20]}  Re5 {[%clk 0:00:33]} 40. Kg3 {[%clk 0:00:20]}  Ke7 {[%clk 0:00:34]} 41. Kf4 {[%clk 0:00:20]}  Rh5 {[%clk 0:00:26]} 42. h3 {[%clk 0:00:19]}  Rh4+ {[%clk 0:00:26]} 43. Ke5 {[%clk 0:00:20]}  g5 {[%clk 0:00:22]} 44. Rb6 {[%clk 0:00:19]}  g4 {[%clk 0:00:21]} 45. Rxb7+ {[%clk 0:00:19]}  Kd8 {[%clk 0:00:22]} 46. hxg4 {[%clk 0:00:19]}  Rxg4 {[%clk 0:00:21]} 47. Kd6 {[%clk 0:00:19]}  Rg6+ {[%clk 0:00:21]} 48. Kd5 {[%clk 0:00:19]}  Rxg2 {[%clk 0:00:22]} 49. Kxe4 {[%clk 0:00:19]}  h5 {[%clk 0:00:22]} 50. Rh7 {[%clk 0:00:19]}  Rh2 {[%clk 0:00:22]} 51. Kd5 {[%clk 0:00:19]}  h4 {[%clk 0:00:21]} 52. Kc6 {[%clk 0:00:19]}  h3 {[%clk 0:00:20]} 53. Kb7 {[%clk 0:00:19]}  Rb2 {[%clk 0:00:20]} 54. Rh4 {[%clk 0:00:14]}  h2 {[%clk 0:00:19]} 55. c6 {[%clk 0:00:14]}  Rxb4+ {[%clk 0:00:19]} 56. Rxb4 {[%clk 0:00:14]}  h1=Q {[%clk 0:00:19]} 57. Rd4+ {[%clk 0:00:13]}  Ke7 {[%clk 0:00:18]} 58. Rd7+ {[%clk 0:00:13]}  Ke8 {[%clk 0:00:17]} 59. Rd4 {[%clk 0:00:08]}  Qf3 {[%clk 0:00:17]} 60. e4 {[%clk 0:00:08]}  Qb3+ {[%clk 0:00:16]} 61. Kxa6 {[%clk 0:00:08]}  Qc3 {[%clk 0:00:14]} 62. Rd5 {[%clk 0:00:08]}  Qxc6+ {[%clk 0:00:14]} 63. Ka7 {[%clk 0:00:08]}  Qc7+ {[%clk 0:00:12]} 64. Ka6 {[%clk 0:00:08]}  Qc8+ {[%clk 0:00:12]} 65. Ka7 {[%clk 0:00:08]}  Qc7+ {[%clk 0:00:12]} 66. Ka6 {[%clk 0:00:09]}  Qc4+ {[%clk 0:00:12]} 67. Ka7 {[%clk 0:00:09]}  Qxe4 {[%clk 0:00:13]} 68. Rb5 {[%clk 0:00:08]}  Qd4+ {[%clk 0:00:11]} 69. Rb6 {[%clk 0:00:07]}  Kd7 {[%clk 0:00:10]} 70. Kb7 {[%clk 0:00:07]}  Qd5+ {[%clk 0:00:10]} 71. Ka6 {[%clk 0:00:06]}  Kc7 {[%clk 0:00:09]} 72. Rb5 {[%clk 0:00:04]}  Qc6+ {[%clk 0:00:09]} 73. Rb6 {[%clk 0:00:04]}  Qc4+ {[%clk 0:00:09]} 74. Ka7 {[%clk 0:00:04]}  Qd5 {[%clk 0:00:09]} 75. a6 {[%clk 0:00:04]}  Qc5 {[%clk 0:00:10]} 76. Ka8 {[%clk 0:00:03]}  Qxb6 {[%clk 0:00:10]} 77. a7 {[%clk 0:00:03]}  Qb7# {[%clk 0:00:10]} 0-1


[Site "https://www.chess.com"]

[Event "Early Titled Tuesday Blitz | February 8 2022"]
[White "De Arruda, Leandro Formes"]
[Black "Bashirli, Saadat"]
[WhiteFideId "22722009"]
[BlackFideId "13429990"]
[WhiteElo "1780"]
[BlackElo "1173"]
[Result "1-0"]
[Round "11"]
[TimeControl "180+1"]
[Date "2022.02.08"]
[WhiteClock "0:00:32"]
[BlackClock "0:00:01"]

1. d4 {[%clk 0:03:00]}  d5 {[%clk 0:02:59]} 2. Nf3 {[%clk 0:03:00]}  e6 {[%clk 0:02:54]} 3. e3 {[%clk 0:03:00]}  c5 {[%clk 0:02:54]} 4. c3 {[%clk 0:03:00]}  Nc6 {[%clk 0:02:52]} 5. Bd3 {[%clk 0:03:00]}  c4 {[%clk 0:02:51]} 6. Bc2 {[%clk 0:03:00]}  Nf6 {[%clk 0:02:52]} 7. Nbd2 {[%clk 0:03:01]}  Bd6 {[%clk 0:02:51]} 8. O-O {[%clk 0:03:02]}  O-O {[%clk 0:02:51]} 9. Re1 {[%clk 0:03:03]}  b5 {[%clk 0:02:50]} 10. e4 {[%clk 0:03:04]}  dxe4 {[%clk 0:02:50]} 11. Nxe4 {[%clk 0:03:04]}  Be7 {[%clk 0:02:42]} 12. Qe2 {[%clk 0:03:03]}  Bd7 {[%clk 0:02:39]} 13. Bg5 {[%clk 0:02:59]}  Nxe4 {[%clk 0:02:35]} 14. Qxe4 {[%clk 0:03:00]}  f5 {[%clk 0:02:29]} 15. Bxe7 {[%clk 0:02:52]}  Qxe7 {[%clk 0:02:07]} 16. Qe3 {[%clk 0:02:46]}  Qf6 {[%clk 0:02:06]} 17. Rad1 {[%clk 0:02:44]}  Ne7 {[%clk 0:02:02]} 18. Ne5 {[%clk 0:02:39]}  Bc8 {[%clk 0:02:02]} 19. Qf3 {[%clk 0:02:31]}  Nd5 {[%clk 0:02:01]} 20. a4 {[%clk 0:02:28]}  Rb8 {[%clk 0:01:56]} 21. Nc6 {[%clk 0:02:15]}  Rb6 {[%clk 0:01:52]} 22. axb5 {[%clk 0:02:16]}  Rxb5 {[%clk 0:01:51]} 23. Rb1 {[%clk 0:02:12]}  Bb7 {[%clk 0:01:41]} 24. Ne5 {[%clk 0:02:12]}  Qg5 {[%clk 0:01:26]} 25. Qg3 {[%clk 0:02:05]}  Qe7 {[%clk 0:01:19]} 26. Ba4 {[%clk 0:01:58]}  Rb6 {[%clk 0:01:17]} 27. Nxc4 {[%clk 0:01:53]}  Ra6 {[%clk 0:01:14]} 28. Bb5 {[%clk 0:01:47]}  f4 {[%clk 0:01:08]} 29. Qg4 {[%clk 0:01:41]}  Ra2 {[%clk 0:00:50]} 30. Rxe6 {[%clk 0:01:31]}  Qf7 {[%clk 0:00:47]} 31. Nd6 {[%clk 0:01:18]}  Qc7 {[%clk 0:00:45]} 32. Nxb7 {[%clk 0:01:05]}  Qxb7 {[%clk 0:00:45]} 33. Bc6 {[%clk 0:01:00]}  Qxb2 {[%clk 0:00:36]} 34. Rf1 {[%clk 0:00:59]}  Nxc3 {[%clk 0:00:23]} 35. Re7 {[%clk 0:00:51]}  Ne2+ {[%clk 0:00:19]} 36. Kh1 {[%clk 0:00:49]}  g6 {[%clk 0:00:18]} 37. Bd5+ {[%clk 0:00:43]}  Kh8 {[%clk 0:00:17]} 38. Qd7 {[%clk 0:00:34]}  Rf7 {[%clk 0:00:01]} 39. Qe8+ {[%clk 0:00:32]} 1-0


[Site "https://www.chess.com"]

[Event "Early Titled Tuesday Blitz | February 8 2022"]
[White "Delorme, Alban"]
[Black "Heinemann, Josefine"]
[WhiteFideId "623636"]
[BlackFideId "12900460"]
[WhiteElo "2197"]
[BlackElo "2300"]
[Result "0-1"]
[Round "11"]
[TimeControl "180+1"]
[Date "2022.02.08"]
[WhiteClock "0:00:02"]
[BlackClock "0:00:32"]

1. e4 {[%clk 0:03:00]}  c5 {[%clk 0:02:57]} 2. Nf3 {[%clk 0:03:01]}  d6 {[%clk 0:02:56]} 3. d4 {[%clk 0:03:01]}  cxd4 {[%clk 0:02:57]} 4. Nxd4 {[%clk 0:03:02]}  Nf6 {[%clk 0:02:56]} 5. Nc3 {[%clk 0:03:03]}  a6 {[%clk 0:02:56]} 6. Bg5 {[%clk 0:03:02]}  e6 {[%clk 0:02:56]} 7. f4 {[%clk 0:03:03]}  Qb6 {[%clk 0:02:55]} 8. Qd2 {[%clk 0:03:02]}  Qxb2 {[%clk 0:02:54]} 9. Rb1 {[%clk 0:02:54]}  Qa3 {[%clk 0:02:53]} 10. e5 {[%clk 0:02:53]}  dxe5 {[%clk 0:02:49]} 11. fxe5 {[%clk 0:02:53]}  Nfd7 {[%clk 0:02:49]} 12. Ne4 {[%clk 0:02:52]}  Qxa2 {[%clk 0:02:48]} 13. Rd1 {[%clk 0:02:52]}  Qd5 {[%clk 0:02:48]} 14. Qe3 {[%clk 0:02:52]}  Qxe5 {[%clk 0:02:36]} 15. Bf4 {[%clk 0:02:48]}  Qa5+ {[%clk 0:02:36]} 16. c3 {[%clk 0:02:48]}  Bc5 {[%clk 0:02:28]} 17. Bd6 {[%clk 0:02:38]}  Bxd6 {[%clk 0:01:58]} 18. Nxd6+ {[%clk 0:02:30]}  Ke7 {[%clk 0:01:58]} 19. N4f5+ {[%clk 0:02:02]}  Kf6 {[%clk 0:01:49]} 20. g4 {[%clk 0:01:08]}  exf5 {[%clk 0:01:31]} 21. Nxf5 {[%clk 0:00:44]}  Ne5 {[%clk 0:00:47]} 22. Rd6+ {[%clk 0:00:10]}  Be6 {[%clk 0:00:47]} 23. h4 {[%clk 0:00:04]}  Qa1+ {[%clk 0:00:40]} 24. Ke2 {[%clk 0:00:04]}  Qb2+ {[%clk 0:00:36]} 25. Rd2 {[%clk 0:00:02]}  Bc4+ {[%clk 0:00:32]} 0-1


[Site "https://www.chess.com"]

[Event "Early Titled Tuesday Blitz | February 8 2022"]
[White "Domingo Nunez, Alejandro"]
[Black "Stankovic, Ivan G"]
[WhiteFideId "22245561"]
[BlackFideId "902837"]
[WhiteElo "2215"]
[BlackElo "2195"]
[Result "1-0"]
[Round "11"]
[TimeControl "180+1"]
[Date "2022.02.08"]
[WhiteClock "0:00:13"]
[BlackClock "0:00:01"]

1. c4 {[%clk 0:03:00]}  c5 {[%clk 0:02:59]} 2. Nc3 {[%clk 0:02:57]}  Nc6 {[%clk 0:02:59]} 3. g3 {[%clk 0:02:57]}  g6 {[%clk 0:03:00]} 4. Bg2 {[%clk 0:02:58]}  Bg7 {[%clk 0:03:00]} 5. e3 {[%clk 0:02:51]}  e5 {[%clk 0:02:58]} 6. Nge2 {[%clk 0:02:51]}  d6 {[%clk 0:02:58]} 7. O-O {[%clk 0:02:52]}  Nge7 {[%clk 0:02:57]} 8. a3 {[%clk 0:02:52]}  O-O {[%clk 0:02:53]} 9. Rb1 {[%clk 0:02:53]}  a5 {[%clk 0:02:50]} 10. Nd5 {[%clk 0:02:52]}  Rb8 {[%clk 0:02:50]} 11. b4 {[%clk 0:02:49]}  axb4 {[%clk 0:02:49]} 12. axb4 {[%clk 0:02:50]}  Nxd5 {[%clk 0:02:49]} 13. cxd5 {[%clk 0:02:50]}  Nxb4 {[%clk 0:02:50]} 14. Ba3 {[%clk 0:02:50]}  Na6 {[%clk 0:02:45]} 15. d4 {[%clk 0:02:51]}  exd4 {[%clk 0:02:38]} 16. exd4 {[%clk 0:02:51]}  Bf5 {[%clk 0:02:38]} 17. Rb5 {[%clk 0:02:49]}  c4 {[%clk 0:02:16]} 18. Nf4 {[%clk 0:02:28]}  Bd7 {[%clk 0:01:55]} 19. Rb1 {[%clk 0:02:22]}  Qc7 {[%clk 0:01:49]} 20. Re1 {[%clk 0:02:10]}  b5 {[%clk 0:01:48]} 21. Qd2 {[%clk 0:02:02]}  c3 {[%clk 0:01:40]} 22. Qd3 {[%clk 0:02:00]}  Bf5 {[%clk 0:01:35]} 23. Be4 {[%clk 0:02:00]}  Bxe4 {[%clk 0:01:21]} 24. Rxe4 {[%clk 0:02:01]}  Rfc8 {[%clk 0:00:55]} 25. Ra1 {[%clk 0:01:46]}  Qa5 {[%clk 0:00:39]} 26. Ree1 {[%clk 0:01:39]}  Qb6 {[%clk 0:00:28]} 27. Re7 {[%clk 0:01:22]}  b4 {[%clk 0:00:24]} 28. Bc1 {[%clk 0:01:22]}  Bxd4 {[%clk 0:00:24]} 29. Rxa6 {[%clk 0:01:21]}  Bxf2+ {[%clk 0:00:24]} 30. Kg2 {[%clk 0:01:21]}  Qd4 {[%clk 0:00:21]} 31. Qf3 {[%clk 0:01:21]}  Be1 {[%clk 0:00:19]} 32. Nd3 {[%clk 0:01:08]}  Qg7 {[%clk 0:00:19]} 33. Raa7 {[%clk 0:01:08]}  Rf8 {[%clk 0:00:18]} 34. Nxb4 {[%clk 0:00:48]}  Rxb4 {[%clk 0:00:16]} 35. Rxe1 {[%clk 0:00:48]}  c2 {[%clk 0:00:13]} 36. Re2 {[%clk 0:00:48]}  Rc4 {[%clk 0:00:10]} 37. Qd3 {[%clk 0:00:45]}  Rc3 {[%clk 0:00:10]} 38. Qd2 {[%clk 0:00:44]}  Rfc8 {[%clk 0:00:10]} 39. Qf4 {[%clk 0:00:34]}  R3c4 {[%clk 0:00:09]} 40. Qxd6 {[%clk 0:00:33]}  Qd4 {[%clk 0:00:10]} 41. Qd7 {[%clk 0:00:30]}  Rf8 {[%clk 0:00:08]} 42. Re8 {[%clk 0:00:22]}  Qg7 {[%clk 0:00:07]} 43. Rxf8+ {[%clk 0:00:16]}  Qxf8 {[%clk 0:00:08]} 44. Qb5 {[%clk 0:00:16]}  Rd4 {[%clk 0:00:05]} 45. Qc6 {[%clk 0:00:14]}  Rd3 {[%clk 0:00:01]} 46. Ra8 {[%clk 0:00:13]} 1-0


[Site "https://www.chess.com"]